Cogmind - Beta 9.4 @@@ ROGUE MODE // 2020.03.08 @ 03:01:14 Player: Beanchilla Result: Destroyed by G-34 Mercenary with Small Laser Performance ------------- Evolutions (1) 500 Regions Visited (2) 400 Robots Destroyed (10) 50 Value Destroyed (198) 198 Prototype IDs (0) 0 Alien Tech Used (0) 0 Bonus (0) 0 TOTAL SCORE: 1148 Bonus ------- None Cogmind --------- Core Integrity 0/400 Matter 138/300 Energy 100/100 System Corruption 2% Temperature Cool (6) Movement Core (50) Location -9/Materials Parts ------- > --- POWER (1) -------- (None) > --- PROPULSION (3) --- (None) > --- UTILITY (3) ------ Utility Shielding Hacking Suite > --- WEAPON (2) ------- (None) > --- INVENTORY (4) ---- Deuterium Engine Armored Treads Medium Matter Pod (0) Small Laser Peak State ------------ > --- POWER ------------ Deuterium Engine > --- PROPULSION ------- Armored Treads Armored Treads Armored Treads > --- UTILITY ---------- Improved Terrain Scanner Utility Shielding Hacking Suite > --- WEAPON ----------- Assault Rifle Light Assault Rifle > --- INVENTORY -------- Deuterium Engine Armored Treads Medium Matter Pod Small Laser [Rating: 20] Favorites ----------- Power Ion Engine Engine Ion Engine Propulsion Aluminum Leg Treads Armored Treads Leg Aluminum Leg Utility Improved Terrain Scanner Device Improved Terrain Scanner Storage Small Storage Unit Hackware Hacking Suite Protection Utility Shielding Weapon Assault Rifle Energy Gun Medium Laser Ballistic Gun Assault Rifle Build | -11 -10 -9 ------- Run | Scr Mat Mat Slots Evolved 2 | . . 2 Power . | . . . Propulsion 1 | . . 1 Utility 1 | . . 1 Weapon . | . . . Parts Attached 20 | 6 9 5 Power 2 | 1 . 1 Engine 2 | 1 . 1 Core . | . . . Reactor . | . . . Propulsion 9 | 2 4 3 Treads 3 | . . 3 Leg 6 | 2 4 . Wheel . | . . . Hover . | . . . Flight . | . . . Utility 5 | 1 3 1 Device 2 | . 2 . Storage 1 | 1 . . Processor . | . . . Hackware 1 | . . 1 Protection 1 | . 1 . Artifact . | . . . Weapon 4 | 2 2 . Energy Gun 1 | 1 . . Energy Cannon . | . . . Ballistic Gun 3 | 1 2 . Ballistic Cannon . | . . . Launcher . | . . . Special Weapon . | . . . Impact Weapon . | . . . Slashing Weapon . | . . . Piercing Weapon . | . . . Special Melee Weapon . | . . . Unidentified Prototypes . | . . . Parts Lost 8 | . 1 7 Power 1 | . . 1 Propulsion 3 | . . 3 Utility 1 | . . 1 Weapon 3 | . 1 2 Highest Loss Streak 6 | . 1 6 Average Slot Usage (%) 90 | . 93 85 Engine 12 | . 14 10 Treads 12 | . . 26 Leg 15 | . 28 1 Device 10 | . 10 10 Storage 6 | . 12 . Hackware 4 | . . 9 Protection 5 | . 1 11 Energy Gun 1 | . 2 . Ballistic Gun 19 | . 23 16 Naked Turns . | . . . Heaviest Build 14 | 13 13 14 Greatest Support 60 | 20 20 60 Greatest Overweight (x) . | . . . Average Overweight (x) . | . . . Largest Inventory Capacity 6 | 6 6 4 Average Capacity 4 | 4 5 4 Most Carried 6 | 4 6 4 Average Carried 4 | 1 4 3 Final Capacity 6 | 6 4 4 Final Carried 4 | 1 3 4 Class Distribution -------------------- 100% | Mutant Dominant Class ---------------- Mutant | -10/Materials Mutant | -9/Materials Resources | -11 -10 -9 ----------- Run | Scr Mat Mat Matter Collected 315 | 240 51 24 Remotely . | . . . Salvage Created 228 | . 167 61 Parts 18 | . 11 7 Haulers Intercepted . | . . . Recyclers Shooed . | . . . Parts Field Recycled . | . . . Retrieved Matter . | . . . Parts Self-Destructed . | . . . Prevented . | . . . Kills | -11 -10 -9 ------- Run | Scr Mat Mat Combat Hostiles Destroyed 9 | . 6 3 Guns 8 | . 6 2 AOE 1 | . . 1 Classes Destroyed 3 | . 2 1 Watcher 1 | . . 1 Swarmer 6 | . 3 3 Grunt 3 | . 3 . Best Kill Streak 4 | . 4 3 Combat Bots Only 4 | . 4 3 Max Kills in Single Turn 1 | . 1 1 Gunslinging . | . . . Exploded 1 | . . 1 Melee . | . . . Uniques/NPCs Destroyed . | . . . Combat | -11 -10 -9 -------- Run | Scr Mat Mat Damage Taken 1933 | . 348 1585 Core 487 | . 86 401 Absorbed by Shields . | . . . Core Remaining (%) 82 | 100 65 . Volleys Fired 39 | . 28 11 Largest 2 | . 2 2 Hottest 70 | . 70 40 Shots Fired 72 | . 50 22 Gun 72 | . 50 22 Cannon . | . . . Launcher . | . . . Special . | . . . Kinetic 66 | . 44 22 Thermal 6 | . 6 . Explosive . | . . . Electromagnetic . | . . . Robot Hit Streak 9 | . 9 5 Robot Miss Streak 6 | . 6 1 Penetration Max . | . . . Secondary Targets . | . . . Shots Hit Robots 43 | . 27 16 Core Hits 21 | . 11 10 Critical Hits . | . . . Critical Kills . | . . . Critical Parts Destroyed . | . . . Melee Attacks . | . . . Impact . | . . . Slashing . | . . . Piercing . | . . . Sneak Attacks . | . . . Combat Hostiles . | . . . Follow-up Attacks . | . . . Damage Inflicted 617 | . 316 301 Guns 451 | . 315 136 Cannons . | . . . Explosions 137 | . . 137 Melee . | . . . Ramming 29 | . 1 28 Kinetic 389 | . 253 136 Thermal 62 | . 62 . Explosive 137 | . . 137 Electromagnetic . | . . . Impact . | . . . Slashing . | . . . Piercing . | . . . Highest Corruption 2 | . . 2 Average Corruption 2 | . . 2 Corruption Purged . | . . . Overload Shots . | . . . Overflow Damage . | . . . Projectiles . | . . . Explosions . | . . . Melee . | . . . Knockbacks . | . . . Impact . | . . . Kinetic . | . . . Secondary . | . . . Self-Inflicted Damage 160 | . . 160 Shots 2 | . . 2 Rammed 9 | . . 9 Targets Rammed 10 | . 1 9 Kicked 1 | . 1 . Crushed . | . . . Highest Temperature 96 | . 96 2 Average Temperature 41 | . 42 2 Received Heat Transfer 792 | . 132 660 Siege Activations . | . . . Robots Corrupted . | . . . Combat Hostiles . | . . . Parts Fried . | . . . Impact Corruptions . | . . . Robots Melted . | . . . Combat Hostiles . | . . . Parts Melted 1 | . 1 . Heat Transferred 185 | . 185 . Parts Sabotaged . | . . . Parts Stolen . | . . . Parts Stripped . | . . . Power Chain Reactions . | . . . Missiles Intercepted . | . . . Alert | -11 -10 -9 ------- Run | Scr Mat Mat Peak Influence 150 | . 150 127 Average Influence 59 | . 73 55 Maximum Alert Level . | . . . Low Security (%) 100 | 100 100 100 Level 1 . | . . . Level 2 . | . . . Level 3 . | . . . Level 4 . | . . . Level 5 . | . . . High Security . | . . . Max Security . | . . . Squads Dispatched 2 | . . 2 Investigation 1 | . . 1 Extermination . | . . . Reinforcement 1 | . . 1 Assault . | . . . Garrison . | . . . Intercept . | . . . Construction Impeded . | . . . Haulers Reinforced . | . . . Stealth | -11 -10 -9 --------- Run | Scr Mat Mat Distress Signals 2 | . 2 . Communications Jammed . | . . . Distress Signals . | . . . Times Spotted 25 | . 9 16 Peak Tracking Total 7 | . 5 7 Tactical Retreats 2 | . 1 1 Traps | -11 -10 -9 ------- Run | Scr Mat Mat Traps Triggered 1 | . . 1 Indirectly . | . . . Trap Hack Attempts . | . . . Triggered . | . . . Disarmed . | . . . Reprogrammed . | . . . Reused . | . . . Traps Extracted . | . . . Installed . | . . . Triggered . | . . . Machines | -11 -10 -9 ---------- Run | Scr Mat Mat Machines Disabled 2 | . . 2 Max in Single Turn 2 | . . 2 Machines Sabotaged . | . . . Garrisons Compromised . | . . . Overloaded Fab Kills . | . . . Fab Network Shutdowns . | . . . Hacking | -11 -10 -9 --------- Run | Scr Mat Mat Machines Accessed 1 | . 1 . Terminals . | . . . Fabricators . | . . . Repair Stations 1 | . 1 . Recycling Units . | . . . Scanalyzers . | . . . Garrison Access . | . . . Total Hacks 2 | . 2 . Successful 2 | . 2 . Failed . | . . . Catastrophic . | . . . Database Lockouts . | . . . Manual . | . . . Terminals . | . . . Fabricators . | . . . Repair Stations 2 | . 2 . Recycling Units . | . . . Scanalyzers . | . . . Garrison Access . | . . . Terminal Hacks . | . . . Fabricator Hacks . | . . . Repair Station Hacks 2 | . 2 . Scan Component 1 | . 1 . Repair 1 | . 1 . Recycling Unit Hacks . | . . . Scanalyzer . | . . . Garrison Access Hacks . | . . . Unauthorized Hacks . | . . . Terminals . | . . . Fabricators . | . . . Repair Stations . | . . . Recycling Units . | . . . Scanalyzers . | . . . Garrison Access . | . . . Data Cores Recovered . | . . . Used . | . . . Hacking Detections 1 | . 1 . Full Trace Events . | . . . Feedback Events . | . . . Feedback Blocked . | . . . Robot Schematics Acquired . | . . . Robots Built . | . . . Matter . | . . . Time . | . . . Total Robot Build Rating . | . . . Part Schematics Acquired . | . . . Parts Built . | . . . Matter . | . . . Time . | . . . Total Part Build Rating . | . . . Parts Repaired 1 | . 1 . Time 26 | . 26 . Parts Recycled . | . . . Recycled Matter . | . . . Retrieved Matter . | . . . Retrieved Components . | . . . Parts Scanalyzed . | . . . Part Schematics Acquired . | . . . Parts Damaged . | . . . Bothacking | -11 -10 -9 ------------ Run | Scr Mat Mat Used RIF Installer . | . . . Robots Hacked . | . . . Non-combat . | . . . Combat . | . . . Robot Hacks Applied . | . . . Relay Couplers Released . | . . . Robots Rewired . | . . . Allies Hacked . | . . . Hacks Repelled . | . . . Allies | -11 -10 -9 -------- Run | Scr Mat Mat Total Allies . | . . . Largest Group . | . . . Highest-Rated Group . | . . . Highest-Rated Ally . | . . . Total Orders . | . . . Ally Attacks . | . . . Total Damage . | . . . Kills . | . . . Allies Corrupted . | . . . Allies Melted . | . . . Intel | -11 -10 -9 ------- Run | Scr Mat Mat Robot Analysis Total . | . . . Derelict Logs Recovered . | . . . Drone Launches . | . . . Drone Recoveries . | . . . Exploration | -11 -10 -9 ------------- Run | Scr Mat Mat Turns Passed 857 | 70 428 359 Spaces Moved 448 | 60 215 173 Core 44 | 23 . 21 Treads 140 | . . 140 Legs 264 | 37 215 12 Wheels . | . . . Hover . | . . . Flight . | . . . Fastest Speed 50 | 50 120 50 Average Speed 128 | 93 120 151 Slowest Speed 170 | 120 120 170 Overloaded Moves . | . . . Propulsion Burnouts . | . . . Robots Hopped . | . . . Cave-ins Triggered . | . . . Exploration Rate (%) 17 | 4 32 15 Regions Visited 2 Branch Regions . Pre-discovered Areas . | . . . Known Exits Taken . | . . . Unknown Exits Taken 2 | 1 1 . Scrap Searched . | . . . Spaces Dug . | . . . Terrain Destroyed 40 | . . 40 Melee . | . . . Projectile . | . . . AOE 40 | . . 40 Actions | -11 -10 -9 --------- Run | Scr Mat Mat Total 659 | 74 337 248 Wait 111 | . 71 40 Move 446 | 59 214 173 Hop . | . . . Pick Up 24 | 8 10 6 Fast Attach 1 | . . 1 Attach 11 | 6 3 2 Detach . | . . . Swap 8 | . 6 2 Drop 9 | 1 4 4 Fire 39 | . 28 11 Melee . | . . . Ram 6 | . . 6 Kick 1 | . 1 . Crush 3 | . . 3 Escape Stasis . | . . . Rewire . | . . . Trap . | . . . Miscellaneous . | . . . Route ------- -11/Scrapyard -10/Materials -9/Materials History --------- Turn | Location | Event 9 | -11/Scrapyard | Discovered new exit (range 16) 71 | -11/Scrapyard | Entered Materials 307 | -10/Materials | Build established: Mutant 368 | -10/Materials | Discovered new exit (range 7) 469 | -10/Materials | Repaired Lgt. Assault Rifle 499 | -10/Materials | Entered another Materials area 499 | -9/Materials | Evolved 2 slots: Propulsion x1, Utility x1 835 | -9/Materials | Core integrity fell below 50% 845 | -9/Materials | Core integrity fell below 20% 858 | -9/Materials | Destroyed by G-34 Mercenary with Small Laser Last Messages --------------- Nuclear Reactor explodes. S-10 Pest destroyed. Nuclear Reactor explodes. K-01 Serf collects debris. The unstable cave ceiling collapses. U-05 Engineer lays Concrete. K-01 Serf collects debris. Assault Rifle destroyed. ALERT: Hostiles spotted, dispatching reinforcements to Terminal M005. Lgt. Assault Rifle destroyed. Arm. Treads destroyed. Deuterium Engine destroyed. Arm. Treads destroyed. Slammed into G-34 Mercenary. Destabilizing: System corrupted (+2). Slammed into G-34 Mercenary. Imp. Terrain Scanner destroyed. Slammed into G-34 Mercenary. G-34 Mercenary destroyed. Slammed into A-02 Transporter. Map ----- +----------------------------------------------------+ | ?????????????????????????????????????????????? | | ??#??????????????????????????????????????????? | | ?????????????????????????????????????????????? | | ?????????????????????????????????????????????? | | ???????????#?????????????????????????????????? | | ?????????????????????????????????????????????? | | #????????????????????????????????????????????? | | #??########??????????????????????????????????? | | #? #??????????????????????????????????? | | #? ???????????????????????????????????? | | # """?????????????????????????????????????? | | # """""??????????????????? #???????????????? | | + """""??#??????????????? #???????????????? | | # """""???#?????????????? #???????????????? | | # """??????????????????? ??##?"??????????? | | #? ????????????????? ?? # "??????????? | | ##########????#???????????? ? # ???????????? | | #?????#?????????? ??????###k##gl/????????????? | | #???????#?##????????????# g#????????????? | | #?????#?????????????? ??# #????????????? | | #??#?#??????? ????"?????# #?????? ?????? | | ##????????#?????????????# #?????????"? ? | | #?#????????????????"????# ?#?#???????"??? | | #?#??##?##????"?????????# a ??? ? ?????"??"?? | | ###?????#?#??? ????????## ##? ?? ? ?????????? | | #####################+## @ #????????????????? | | T #????????#???????? | | ## ### "" #????? ??#???????? | | # ## k ## #????????????????? | | ## #### ########?????? ????? ??# | | # #??# #?##???????????????????? | | # #??# """ #############??????????? | | # # #?## """ # =%= #????????#?? | | # ##?# """ #! / """ #??????????? | | [ #??# """ # """""#?+?#??????? | | ## ##?# + """""#??????????? | | ### #??# # """""#??????????? | | ####?# #??# """ # """ #??????????# | | ????## #??# """ # #??????????? | | ????# ##?# """ #############???? ?????? | | ?????# #??# """ #????????????????????#?? | | ?????# #??# #??????????????#???????? | | ?????# #?## ##??#??????????????????? | | ???#####+#### """ #????#?????????????????? | | ???# # """ #????????????#?#???????? | | ???# # """ #??????????"???????????? | | ???# # "?" #??????????????????????? | | ???# # ? ????????? ????????????? | | ???########## ? ??????????????????????? | | ????????????? ? ??????????????????????? | +----------------------------------------------------+ Best States ------------- Heat Dissipation 35 Energy Generation 14 Energy Capacity 275 Matter Stores 280 Matter Capacity 300 Sight Range 16 Terrain Scan Range 16 Terrain Scan Density 10 Utility Shielding 33 Evasion (%) 50 Recoil Reduction 3 Offensive Hacking 10 Item Schematics ----------------- None Robot Schematics ------------------ None Fabricated ------------ Nothing Alien Tech Used ----------------- None Achievements -------------- None Challenges ------------ None Game ------ Seed FissionLobotomyTearclaws Manual? 0 Play Time 00:10:45 Cumulative 7.9 hours Start 2020.03.08 @ 01:43:48 End 2020.03.08 @ 03:01:14 Sessions 1 Manual Loads 0 Difficulty Rogue Special Mode None Game No. 23 Rogue 23 Adventurer 0 Explorer 0 Win Type - Total 0 Types 0/0/0/0/0/0/0 Lore% 2 Gallery% 10 Achievement% 3 Wizard Run 0 Options --------- ASCII 0 Keyboard 0 Movement Numpad Keybinds 0 Fullscreen 1 Font 18/X11Bold Map View 76x50 Tactical HUD 0 Map Filters NONE Filters NONE Steam 1 RUN: 0192a3fa-7307-46b3-b99b-57225cff8dc7